bitfinex-derivatives/quotes_ETHF0:USTF0_20241020
["timestamp","ask_amount","ask_price","bid_price","bid_amount"]
[1729449775770,0.3697,2705.3,2705.2,4.67121477]
[1729449775961,0.3697,2705.3,2705.2,1.7796458]
[1729449776264,5.51896789,2705.3,2705.2,2.167201]
[1729449776562,5.51896789,2705.3,2705.2,0.96552201]
[1729449776563,2.31116789,2705.3,2705.2,0.96552201]
[1729449778360,2.31116789,2705.3,2705.2,1.08115034]
[1729449778667,2.31116789,2705.3,2705.2,1.26615567]
[1729449778870,2.31116789,2705.3,2705.2,1.72866949]
[1729449779163,2.31116789,2705.3,2705.2,1.54366428]
[1729449779471,2.31116789,2705.3,2705.2,1.84429822]
[1729449780261,0.3697,2705.3,2705.2,0.87877621]
[1729449781463,0.3697,2705.3,2705.2,0.4625138]
[1729449781657,0.3697,2705.3,2705.2,0.87879053]
[1729449782263,0.3697,2705.3,2705.2,0.7631602]
[1729449782772,4.0665,2705.3,2705.2,0.7631602]
[1729449782959,4.0665,2705.3,2705.2,0.30063886]
[1729449784169,4.0665,2705.3,2705.2,0.11563033]
[1729449784868,7.2743,2705.3,2705.2,0.11563033]
[1729449785070,7.2743,2705.3,2705.2,0.11563521]
[1729449786568,7.2743,2705.3,2704.9,0.36975]
[1729449786569,6.9046,2705.3,2704.9,0.36975]
[1729449786775,2.30993107,2705.0,2704.9,0.36975]
[1729449786969,2.30993107,2705.0,2704.9,0.11563424]
[1729449787365,0.36974,2705.0,2704.9,2.76461905]
[1729449790287,0.36974,2705.0,2704.9,2.64898481]
[1729449791571,0.78654,2705.0,2704.9,2.64898481]
[1729449792374,0.78654,2705.0,2704.9,2.6484594]
[1729449793371,0.78654,2705.0,2704.9,2.76409319]
[1729449793576,0.78654,2705.0,2704.9,1.61661937]
[1729449793879,0.78654,2705.0,2704.9,2.07916388]
[1729449794172,0.78654,2705.0,2704.9,3.52728553]
[1729449795267,0.78654,2705.0,2704.9,2.32694778]
[1729449795466,0.78654,2705.0,2704.9,2.07935507]
[1729449795673,0.78654,2705.0,2704.9,1.61680767]
[1729449795876,0.78654,2705.0,2704.9,2.07933835]
[1729449797269,0.78654,2705.0,2704.9,2.07914344]
[1729449797468,0.78654,2705.0,2704.9,3.52726509]
[1729449797871,0.78654,2705.0,2704.9,2.07914344]
[1729449799273,0.78654,2705.0,2704.9,2.07914453]
[1729449799483,0.78654,2705.0,2704.9,3.52726618]
[1729449799779,0.78654,2705.0,2704.9,2.07914453]
[1729449801277,0.78654,2705.0,2704.9,3.52726618]
[1729449801874,0.78654,2705.0,2704.9,2.07914453]
[1729449802074,0.78654,2705.0,2704.9,2.07916051]
[1729449802270,0.78654,2705.0,2704.9,3.52728216]
[1729449802481,0.78654,2705.0,2704.9,0.8788105]
[1729449802976,0.78654,2705.0,2704.9,0.41628109]
[1729449803276,0.78654,2705.0,2704.9,0.87881932]
[1729449804167,4.48334,2705.0,2704.9,0.87881932]
[1729449804370,7.69114,2705.0,2704.9,0.11563328]
[1729449805569,0.36979,2704.6,2704.5,0.417]
[1729449805783,2.30881113,2704.6,2704.5,0.76327608]
[1729449805972,2.79356641,2704.6,2704.5,0.11564789]
[1729449806280,2.79356641,2704.6,2704.0,1.33421821]
[1729449806281,0.36985,2704.2,2704.1,0.4061]
[1729449806480,0.36985,2704.2,2704.1,1.6967635]
[1729449806975,0.36985,2704.2,2704.1,2.0666235]
[1729449807481,1.93931051,2704.5,2704.1,1.6967635]
[1729449807779,0.3698,2704.6,2704.2,1.80426914]
[1729449807976,3.57758,2704.7,2704.3,1.61921534]
[1729449808179,3.2078,2704.7,2704.6,0.36979]
[1729449808383,3.2078,2704.7,2704.6,0.67048818]
[1729449808680,3.2078,2704.7,2704.6,0.48545625]
[1729449809779,3.57758,2704.7,2704.6,0.36979]
[1729449809972,3.57758,2704.7,2704.5,0.7934]
[1729449810284,0.36979,2704.6,2704.5,0.7934]
[1729449810586,0.36979,2704.6,2704.5,2.24319693]
[1729449811873,0.36979,2704.6,2704.5,0.7934]
[1729449812487,0.36979,2704.6,2704.5,1.1632]
[1729449814386,0.36979,2704.6,2704.5,2.24319567]
[1729449814680,0.36979,2704.6,2704.5,1.87339567]
[1729449814886,0.36979,2704.6,2704.5,2.24319567]
[1729449815884,0.75478,2704.7,2704.6,0.36979]
[1729449816078,0.36979,2704.6,2704.5,1.75774821]
[1729449816279,0.36979,2704.6,2704.5,2.33598842]
[1729449816486,0.36979,2704.6,2704.5,2.45163788]
[1729449816683,0.36979,2704.6,2704.5,0.97843976]
[1729449816986,0.36979,2704.6,2704.5,1.09408961]
[1729449817186,0.36979,2704.6,2704.5,2.05843782]
[1729449817591,0.36979,2704.6,2704.5,1.55668884]
[1729449818481,0.36979,2704.6,2704.5,1.6723386]
[1729449820379,0.36979,2704.6,2704.5,1.67233939]
[1729449823484,0.36979,2704.6,2704.5,1.55668963]
[1729449823885,0.36979,2704.6,2704.5,1.25600393]
[1729449824085,0.36979,2704.6,2704.5,0.7934]
[1729449825587,0.36979,2704.6,2704.5,1.75774821]
[1729449829478,0.36979,2704.6,2704.5,0.96434821]
[1729449829687,0.3698,2704.5,2704.4,0.96434821]
[1729449829987,0.3698,2704.5,2704.4,2.16441903]
[1729449829988,0.7669,2704.5,2704.4,2.16441903]
[1729449830391,0.7669,2704.5,2704.4,0.96434821]
[1729449830796,0.7669,2704.5,2704.4,2.46511519]
[1729449830992,0.7669,2704.5,2704.4,1.26504806]
[1729449831284,0.7669,2704.5,2704.4,1.72766642]
[1729449831495,0.7669,2704.5,2704.4,1.84332074]
[1729449831789,0.7669,2704.5,2704.4,3.0433882]
[1729449832383,0.7669,2704.5,2704.4,3.52716164]
[1729449832579,0.7669,2704.5,2704.4,0.87897253]
[1729449834186,0.7669,2704.5,2704.4,1.24879253]
[1729449834489,0.7669,2704.5,2704.4,1.24877912]
[1729449834695,0.7669,2704.5,2704.4,0.87895912]
[1729449835092,0.7669,2704.5,2704.4,1.24877912]
[1729449836196,0.7669,2704.5,2704.4,0.87895912]
[1729449836588,0.7669,2704.5,2704.4,1.24877912]
[1729449837990,0.7669,2704.5,2704.4,0.78617131]
[1729449838300,0.7669,2704.5,2704.4,1.24877715]
[1729449838498,0.7669,2704.5,2704.4,1.13312569]
[1729449838891,0.7669,2704.5,2704.4,0.94807963]
[1729449839396,0.7669,2704.5,2704.4,0.57825963]
[1729449840104,0.7669,2704.5,2704.4,0.94807963]
[1729449840603,0.7669,2704.5,2704.4,3.5965074]
[1729449840803,0.7669,2704.5,2704.4,3.2266874]
[1729449840993,0.7669,2704.5,2704.4,3.226686]
[1729449842706,0.7669,2704.5,2704.4,3.78154886]
[1729449843202,0.3962,2704.6,2704.4,2.33342721]
[1729449843398,0.3698,2704.5,2704.4,0.75842]
[1729449843703,0.3698,2704.5,2704.4,2.72217407]
[1729449843901,0.3698,2704.5,2704.4,2.60652568]
[1729449844108,0.3698,2704.5,2704.4,2.9049994]
[1729449846203,0.3698,2704.5,2704.4,5.57582806]
[1729449846399,0.3698,2704.5,2704.4,3.64515381]
[1729449846707,0.3698,2704.5,2704.4,5.87652157]
[1729449847705,0.3698,2704.5,2704.4,2.14171947]
[1729449847910,0.3698,2704.5,2704.4,2.74310201]
[1729449848207,0.3698,2704.5,2704.4,3.48326514]
[1729449848405,0.3698,2704.5,2704.4,3.9458671]
[1729449848605,0.3698,2704.5,2704.4,5.87654135]
[1729449848802,0.3698,2704.5,2704.4,4.67827944]
[1729449849003,0.3698,2704.5,2704.4,4.6746414]
[1729449849209,0.3698,2704.5,2704.4,5.87741052]
[1729449849605,0.3698,2704.5,2704.4,8.27610627]
[1729449849805,0.3698,2704.5,2704.4,9.20129517]
[1729449850210,0.3698,2704.5,2704.4,9.4660363]
[1729449851104,3.57756,2704.9,2704.7,0.36977]
[1729449851304,3.57755,2704.9,2704.8,3.06354734]
[1729449851505,3.57755,2704.9,2704.8,5.25404843]
[1729449851807,3.57755,2704.9,2704.8,5.67674843]
[1729449852513,0.36975,2704.9,2704.8,5.67674843]
[1729449853812,0.36975,2704.9,2704.8,5.6767664]
[1729449854518,0.36975,2704.9,2704.8,5.07541011]
[1729449854721,0.36975,2704.9,2704.8,5.67672673]
[1729449855517,0.36975,2704.9,2704.8,5.67648676]
[1729449855714,0.36975,2704.9,2704.8,3.02949482]
[1729449856109,0.36975,2704.9,2704.8,2.84447432]
[1729449858319,0.36975,2704.9,2704.8,2.38187904]
[1729449858517,2.31020513,2704.9,2704.8,3.58451401]
[1729449858713,0.36975,2704.9,2704.8,4.04706567]
[1729449859223,0.36975,2704.9,2704.8,3.30698261]
[1729449859721,2.31008292,2704.9,2704.8,3.30698261]
[1729449861120,2.31008292,2704.9,2704.8,3.00632404]
[1729449861420,2.31008292,2704.9,2704.8,1.31827213]
[1729449861421,0.36975,2704.9,2704.8,1.31827213]
[1729449861712,0.36975,2704.9,2704.6,0.36979]
[1729449861713,0.36978,2704.7,2704.6,0.78509]
[1729449862220,0.36978,2704.7,2704.6,1.36329696]
[1729449862516,0.78988,2704.7,2704.6,1.36329696]
[1729449862712,0.78988,2704.7,2704.6,2.56160674]
[1729449863619,0.78988,2704.7,2704.6,4.00851757]
[1729449863825,0.78988,2704.7,2704.6,2.56159489]
[1729449865322,0.78988,2704.7,2704.6,1.98338793]
[1729449865509,0.78988,2704.7,2704.6,2.56159336]
[1729449867528,0.78988,2704.7,2704.6,1.77650336]
[1729449867832,0.78988,2704.7,2704.6,2.76083555]
[1729449868316,1.59698,2704.7,2704.6,2.76083555]
[1729449868517,1.59698,2704.7,2704.6,3.9636043]
[1729449868717,1.59698,2704.7,2704.6,4.26429292]
[1729449868924,1.59698,2704.7,2704.6,3.84795431]
[1729449869127,1.59698,2704.7,2704.6,4.44931382]
[1729449869327,1.59698,2704.7,2704.6,4.26427609]
[1729449869526,1.59698,2704.7,2704.6,4.26428158]
[1729449869913,1.59698,2704.7,2704.6,1.61908711]
[1729449870318,1.59698,2704.7,2704.6,1.80412429]
[1729449870828,1.59698,2704.7,2704.6,1.61908711]
[1729449871332,1.59698,2704.7,2704.6,1.80412381]
[1729449872422,1.2272,2704.7,2704.5,0.96444124]
[1729449872622,0.36979,2704.6,2704.5,0.96444124]
[1729449872825,0.36979,2704.6,2704.5,1.5658138]
[1729449873021,0.36979,2704.6,2704.5,2.768559]
[1729449873421,0.36979,2704.6,2704.5,1.5658138]
[1729449873617,0.36979,2704.6,2704.5,2.76854788]
[1729449873822,0.36979,2704.6,2704.5,1.61906893]
[1729449873823,2.30996617,2704.6,2704.5,1.61906893]
[1729449874026,2.30996617,2704.6,2704.5,0.87892488]
[1729449874027,0.36979,2704.6,2704.5,0.87892488]
[1729449877830,0.36979,2704.6,2704.5,3.52422735]
[1729449879724,0.36979,2704.6,2704.5,3.5242682]
[1729449883126,0.36979,2704.6,2704.5,2.07729054]
[1729449883729,0.36979,2704.6,2704.5,1.49902349]
[1729449884227,0.36979,2704.6,2704.5,1.31397807]
[1729449884933,0.36979,2704.6,2704.5,2.2786039]
[1729449885126,0.36979,2704.6,2704.5,2.27860199]
[1729449886030,0.36979,2704.6,2704.5,0.96462392]
[1729449887336,1.2272,2704.7,2704.3,1.83169654]
[1729449887531,1.2272,2704.7,2704.4,2.27835351]
[1729449887731,0.3698,2704.5,2704.4,0.96453183]
[1729449887927,0.3698,2704.5,2704.4,2.27836034]
[1729449889928,0.3698,2704.5,2704.4,2.2782564]
[1729449890127,0.36982,2704.4,2704.3,0.96448593]
[1729449890328,1.17732,2704.4,2704.3,0.96448593]
[1729449891341,1.17732,2704.4,2704.3,1.26520917]
[1729449891837,1.17732,2704.4,2704.3,1.84351755]
[1729449892235,1.17732,2704.4,2704.3,0.76336996]
[1729449892838,3.11749617,2704.4,2704.3,0.76336996]
[1729449893439,3.11749617,2704.4,2704.3,0.30072324]
[1729449893641,6.81509617,2704.4,2704.3,0.30072324]
[1729449893940,6.81509617,2704.4,2704.1,0.3813]
[1729449893941,10.13703814,2704.4,2703.9,0.4188]
[1729449894240,0.36986,2704.1,2704.0,0.57836148]
[1729449895039,0.75546,2704.1,2704.0,0.57836148]
[1729449895244,0.75546,2704.1,2704.0,0.46268919]
[1729449895637,0.75546,2704.1,2704.0,0.57836218]
[1729449896243,0.75546,2704.1,2704.0,0.46268919]
[1729449897336,0.75546,2704.1,2703.9,0.4188]
[1729449897337,0.3856,2704.1,2703.9,0.4188]
[1729449897532,0.36987,2704.0,2703.9,0.4188]
[1729449897738,0.36987,2704.0,2703.9,0.99716482]
[1729449898740,0.36987,2704.0,2703.9,0.53447296]
[1729449898939,0.36987,2704.0,2703.9,0.4188]
[1729449899950,0.36987,2704.0,2703.9,2.58012706]
[1729449902246,0.36987,2704.0,2703.9,2.58054339]
[1729449903145,0.36987,2704.0,2703.9,1.38328593]
[1729449904037,0.36987,2704.0,2703.9,0.96448593]
[1729449904238,0.36989,2703.9,2703.8,0.96448593]
[1729449904449,0.36993,2703.6,2703.5,0.96448593]
[1729449904645,0.36996,2703.4,2703.3,2.14928593]
[1729449905355,0.3927,2703.5,2703.3,1.1848]
[1729449905545,3.2078,2703.7,2703.6,0.36993]
[1729449906046,2.65251131,2703.7,2703.6,1.45010382]
[1729449906242,2.65251131,2703.7,2703.6,1.86050382]
[1729449906443,2.65251131,2703.7,2703.6,2.045601]
[1729449906846,2.65251131,2703.7,2703.6,2.16128523]
[1729449907141,2.65251131,2703.7,2703.6,2.62402216]
[1729449908947,0.3699,2703.8,2703.6,2.62402216]
[1729449909251,0.3699,2703.8,2703.7,0.51498789]
[1729449910139,0.3699,2703.8,2703.7,0.3993]
[1729449910344,0.3699,2703.8,2703.7,0.51498245]
[1729449911249,0.3699,2703.8,2703.7,0.11568245]
[1729449911548,3.6984,2703.8,2703.7,0.11569032]
[1729449911853,0.36994,2703.5,2703.4,0.96448593]
[1729449912044,0.36994,2703.5,2703.4,1.84375944]
[1729449912245,0.36994,2703.5,2703.4,1.08017981]
[1729449912447,0.36994,2703.5,2703.4,0.11569388]
[1729449917253,0.36994,2703.5,2703.4,0.11569133]
[1729449918054,0.36994,2703.5,2703.4,1.08017726]
[1729449918254,0.36994,2703.5,2703.4,1.26528061]
[1729449918453,0.4033,2703.8,2703.4,1.26528061]
[1729449918657,0.8155,2704.0,2703.5,1.72800274]
[1729449918848,0.36987,2704.0,2703.8,0.36989]
[1729449919059,0.36987,2704.0,2703.9,0.8033]
[1729449919360,0.36987,2704.0,2703.9,0.91897572]
[1729449920747,0.36987,2704.0,2703.9,0.8033]
[1729449920961,0.36987,2704.0,2703.9,0.91897529]
[1729449924556,0.36987,2704.0,2703.9,0.9189773]
[1729449928269,0.36987,2704.0,2703.9,0.8033]
[1729449929257,0.36987,2704.0,2703.9,0.389]
[1729449933464,0.36987,2704.0,2703.9,1.72337593]
[1729449933860,0.4057,2704.1,2703.9,1.35348593]
[1729449934058,0.36987,2704.0,2703.9,1.72336593]
[1729449934364,0.36987,2704.0,2703.9,3.03451432]
[1729449934568,0.36987,2704.0,2703.9,1.83903926]
[1729449934768,0.36987,2704.0,2703.9,3.03450331]
[1729449935066,0.36987,2704.0,2703.9,2.07001738]
[1729449935260,0.77557,2704.1,2703.9,2.07001738]
[1729449935460,0.8333,2704.3,2704.0,0.96438636]
[1729449935668,0.8333,2704.3,2704.0,1.34878636]
[1729449935669,0.36986,2704.1,2704.0,1.34878636]
[1729449935966,0.36986,2704.1,2704.0,3.02986415]
[1729449936170,0.36986,2704.1,2704.0,1.81127635]
[1729449936655,0.36986,2704.1,2704.0,1.99634716]
[1729449936853,0.36986,2704.1,2704.0,2.96072779]
[1729449937052,0.36986,2704.1,2704.0,2.45902604]
[1729449938457,0.36986,2704.1,2704.0,3.90592258]
[1729449939170,0.36986,2704.1,2704.0,3.02683597]
[1729449939362,0.36986,2704.1,2704.0,3.90593263]
[1729449942672,0.36986,2704.1,2704.0,3.60518929]
[1729449942869,0.36986,2704.1,2704.0,3.90593057]
[1729449944456,0.36986,2704.1,2704.0,3.90612328]
[1729449945062,0.36986,2704.1,2704.0,1.2634946]
[1729449946270,0.36986,2704.1,2704.0,1.26349629]
[1729449949874,0.36986,2704.1,2704.0,1.26349754]
[1729449951173,0.36986,2704.1,2704.0,0.68514422]
[1729449951769,0.36986,2704.1,2704.0,0.3844]
[1729449953574,0.8333,2704.3,2703.9,1.77206602]
[1729449953575,0.36987,2704.0,2703.9,1.77206602]
[1729449953772,0.78627,2704.0,2703.9,2.14195602]
[1729449957384,0.78627,2704.0,2703.9,1.77206602]
[1729449957572,0.78627,2704.0,2703.9,2.14195602]
[1729449958183,0.78627,2704.0,2703.9,3.33825279]
[1729449958975,0.78627,2704.0,2703.9,3.63899614]
[1729449959175,0.78627,2704.0,2703.9,4.95764068]
[1729449959578,0.78627,2704.0,2703.9,4.21734882]
[1729449959874,0.78627,2704.0,2703.9,4.95764417]
[1729449960077,0.78627,2704.0,2703.9,3.99317815]
[1729449960278,2.72587342,2704.0,2703.9,2.79688138]
[1729449960478,2.72587342,2704.0,2703.9,1.17749]
[1729449960681,2.72587342,2704.0,2703.9,2.68120887]
[1729449960886,2.72587342,2704.0,2703.9,3.99985907]
[1729449962086,2.72587342,2704.0,2703.9,3.35235859]
[1729449962381,2.72587342,2704.0,2703.9,2.42699498]
[1729449962587,2.72587342,2704.0,2703.9,2.98196016]
[1729449962782,2.72587342,2704.0,2703.9,2.79688645]
[1729449962987,2.72587342,2704.0,2703.9,1.77898152]
[1729449963377,2.72587342,2704.0,2703.9,2.14938759]
[1729449963683,2.72587342,2704.0,2703.9,2.61207263]
[1729449963991,2.72743289,2704.0,2703.9,2.61207263]
[1729449964290,2.72743289,2704.0,2703.9,2.98196263]
[1729449964291,0.78627,2704.0,2703.9,2.98196263]
[1729449966089,0.78627,2704.0,2703.9,2.61207263]
[1729449966393,0.78627,2704.0,2703.9,1.27028504]
[1729449966578,0.78627,2704.0,2703.9,1.57103526]
[1729449966983,0.78627,2704.0,2703.9,1.3859582]
[1729449967889,0.78627,2704.0,2703.9,1.7558482]
[1729449968389,0.78627,2704.0,2703.9,4.51449826]
[1729449968785,0.78627,2704.0,2703.9,4.88438826]
[1729449968984,0.78627,2704.0,2703.9,4.51449826]
[1729449969985,0.78627,2704.0,2703.9,3.93614006]
[1729449970188,0.78627,2704.0,2703.9,4.0518122]
[1729449970398,0.78627,2704.0,2703.9,4.51450076]
[1729449970584,0.78627,2704.0,2703.9,4.88439076]
[1729449970891,0.78627,2704.0,2703.9,7.28077917]
[1729449971091,0.78627,2704.0,2703.9,6.91088917]
[1729449971591,0.78627,2704.0,2703.9,4.51450076]
[1729449971788,0.78627,2704.0,2703.9,3.93614006]
[1729449971981,0.78627,2704.0,2703.9,2.50905342]
[1729449972283,0.78627,2704.0,2703.9,2.76389388]
[1729449972489,0.78627,2704.0,2703.9,2.6482206]
[1729449974091,0.78627,2704.0,2703.9,2.94898549]
[1729449974291,0.78627,2704.0,2703.9,4.26772367]
[1729449975290,0.78627,2704.0,2703.9,1.61950307]
[1729449976099,0.78627,2704.0,2703.9,0.8791664]
[1729449976291,4.48467,2704.0,2703.9,0.8791664]
[1729449978787,0.78627,2704.0,2703.9,0.8791664]
[1729449978987,0.78627,2704.0,2703.9,1.61949221]
[1729449979190,3.21334038,2704.0,2703.9,1.61949221]
[1729449980597,3.21334038,2704.0,2703.9,1.98938221]
[1729449980792,3.21334038,2704.0,2703.9,0.78633059]
[1729449980991,3.21334038,2704.0,2703.9,1.80454937]
[1729449981197,3.21334038,2704.0,2703.9,0.30076489]
[1729449981597,3.21334038,2704.0,2703.9,0.67065489]
[1729449982103,3.21334038,2704.0,2703.9,0.36989]
[1729449982489,2.84347038,2704.0,2703.7,1.77828063]
[1729449982700,1.94161166,2703.8,2703.7,1.77828063]
[1729449983003,1.94161166,2703.8,2703.7,2.35665825]
[1729449983203,1.94161166,2703.8,2703.7,2.72656825]
[1729449983498,0.36989,2703.9,2703.8,0.3699]
[1729449983700,0.36989,2703.9,2703.8,4.08218869]
[1729449986200,0.36989,2703.9,2703.8,3.71228869]
[1729449986498,0.36989,2703.9,2703.8,3.71256065]
[1729449987804,0.36989,2703.9,2703.8,3.24985855]
[1729449987995,0.36989,2703.9,2703.8,3.71256275]
[1729449989301,0.36989,2703.9,2703.8,5.30862748]
[1729449989503,0.36989,2703.9,2703.8,8.263089]
[1729449989695,0.36989,2703.9,2703.8,7.33769957]
[1729449989900,0.36989,2703.9,2703.8,4.93872748]
[1729449990295,0.36989,2703.9,2703.8,3.00407798]
[1729449990501,0.36989,2703.9,2703.8,1.80454445]
[1729449991497,0.36989,2703.9,2703.8,1.80455493]
[1729449992712,2.79696038,2703.9,2703.8,1.80455493]
[1729449992912,0.36989,2703.9,2703.8,1.80455493]
[1729449994605,0.36989,2703.9,2703.8,1.80455166]
[1729449995109,0.36989,2703.9,2703.7,2.14850164]
[1729449995311,0.36989,2703.9,2703.8,1.80455159]
[1729449995906,0.36989,2703.9,2703.8,2.72996231]
[1729449998412,0.36989,2703.9,2703.8,6.32839008]
[1729449998806,0.36989,2703.9,2703.8,6.3283899]
[1729450001206,0.36989,2703.9,2703.8,6.32842383]
[1729450002403,0.36989,2703.9,2703.8,4.19997476]
[1729450002707,0.36989,2703.9,2703.8,6.32840605]
[1729450003303,0.36989,2703.9,2703.8,6.6983085]
[1729450004110,0.36989,2703.9,2703.8,6.51322729]
[1729450004412,0.36989,2703.9,2703.8,4.17684035]
[1729450004909,0.36989,2703.9,2703.8,6.11293714]
[1729450005507,0.36989,2703.9,2703.8,3.71396267]
[1729450005901,0.36989,2703.9,2703.8,2.51448542]
[1729450006210,0.36989,2703.9,2703.8,3.71466957]
[1729450010907,0.36989,2703.9,2703.8,6.11518664]
[1729450011107,0.36989,2703.9,2703.8,3.71471916]
[1729450011410,0.36989,2703.9,2703.8,6.09762409]
[1729450012111,0.36989,2703.9,2703.8,8.49813298]
[1729450012610,2.3118256,2703.9,2703.8,3.92942698]
[1729450013014,2.3118256,2703.9,2703.8,3.09656624]
[1729450013219,2.3118256,2703.9,2703.8,3.92942577]
[1729450017413,2.3118256,2703.9,2703.8,5.129558]
[1729450017620,2.3118256,2703.9,2703.8,3.92942577]
[1729450018522,2.3118256,2703.9,2703.8,5.12935537]
[1729450019528,2.3118256,2703.9,2703.8,3.67186051]
[1729450019829,2.3118256,2703.9,2703.8,2.4719211]
[1729450020621,0.36989,2703.9,2703.8,7.03886769]
[1729450020823,4.06829,2703.9,2703.8,2.76709932]
[1729450021225,6.0102256,2703.9,2703.8,2.65142439]
[1729450021527,6.0102256,2703.9,2703.8,2.16763034]
[1729450022526,6.0102256,2703.9,2703.8,0.96796927]
[1729450023629,0.3699,2703.8,2703.7,0.96796927]
[1729450023829,4.0683,2703.8,2703.7,2.16732931]
[1729450024623,4.0683,2703.8,2703.7,0.96796927]
[1729450025720,7.2761,2703.8,2703.7,0.96796927]
[1729450025923,0.36991,2703.7,2703.6,0.96796927]
[1729450026122,4.45051,2703.7,2703.6,0.96796927]
[1729450026325,0.3822,2703.7,2703.3,1.45176332]
[1729450026525,0.3822,2703.7,2703.4,0.11571099]
[1729450026526,0.36994,2703.5,2703.4,0.11571099]
[1729450026830,9.21852004,2703.5,2703.4,0.11571099]
[1729450027435,0.37,2703.1,2703.0,1.45176332]
[1729450027630,0.37,2703.1,2703.0,2.81399152]
[1729450027838,0.37,2703.1,2703.0,2.0734281]
[1729450028529,4.4776,2703.1,2703.0,0.87941747]
[1729450028725,4.4776,2703.1,2703.0,0.11571282]
[1729450029128,4.4776,2703.1,2702.5,2.20464332]
[1729450029129,5.03262,2703.1,2702.5,2.20464332]
[1729450029335,5.03262,2703.1,2702.6,0.41662627]
[1729450029336,0.37005,2702.7,2702.6,0.41662627]
[1729450029634,0.37005,2702.7,2702.6,0.11572952]
[1729450029934,0.37005,2702.7,2702.0,2.44367143]
[1729450029935,0.92517,2702.6,2702.0,4.65956332]
[1729450030234,4.4135,2702.6,2702.1,0.48587939]
[1729450030440,4.4135,2702.6,2702.0,1.45176332]
[1729450030630,3.2078,2702.9,2702.3,3.2078]
[1729450030825,3.2078,2702.9,2702.4,2.08006053]
[1729450031027,3.2078,2702.9,2702.8,0.37004]
[1729450031734,3.57782,2702.9,2702.7,0.37004]
[1729450032029,3.2078,2702.9,2702.8,0.77784]
[1729450032237,0.4084,2703.0,2702.8,0.77784]
[1729450032533,0.77841,2703.0,2702.9,0.8176]
[1729450032735,0.8277,2703.2,2702.9,1.18762]
[1729450032736,0.37001,2703.1,2702.9,1.18762]
[1729450033529,1.2124,2703.2,2702.9,1.18762]
[1729450033724,0.37001,2703.0,2702.9,1.18762]
[1729450033924,0.37001,2703.0,2702.9,0.8176]
[1729450035432,0.37001,2703.0,2702.9,0.42]
[1729450038641,0.37002,2702.9,2702.8,0.4078]
[1729450038826,0.37002,2702.9,2702.5,0.77367]
[1729450038827,0.37005,2702.7,2702.6,0.4093]
[1729450039840,1.3111,2702.9,2702.3,3.2078]
[1729450040036,0.386,2702.6,2702.1,1.2311]
[1729450040233,0.37012,2702.2,2702.1,1.2311]
[1729450040641,0.37011,2702.3,2702.1,1.60123]
[1729450041041,0.3986,2702.5,2702.1,1.60122]
[1729450041042,0.3701,2702.4,2702.1,1.60122]
[1729450041338,0.3701,2702.4,2702.1,1.2311]
[1729450041639,3.9628,2702.7,2702.3,0.3701]
[1729450041841,3.9628,2702.7,2702.1,4.4389]
[1729450041842,0.37008,2702.6,2702.1,4.4389]
[1729450042042,0.37008,2702.6,2702.4,0.37009]
[1729450042241,0.37008,2702.6,2702.5,0.4044]
[1729450042740,3.7,2702.6,2702.1,0.8218]
[1729450042942,0.37012,2702.2,2702.1,0.4091]
[1729450043543,1.5566,2702.5,2702.1,0.4091]
[1729450043745,0.37012,2702.3,2702.2,0.8008]
[1729450045038,3.2078,2702.7,2702.2,0.8008]
[1729450045245,0.37006,2702.6,2702.3,0.3701]
[1729450045548,0.37006,2702.6,2702.4,0.37009]
[1729450045741,3.2078,2702.7,2702.2,0.8008]
[1729450046046,3.2078,2702.7,2702.3,0.3701]
[1729450046047,0.37008,2702.5,2702.3,0.3701]
[1729450046255,0.37007,2702.6,2702.3,0.3701]
[1729450046953,1.1735,2702.8,2702.3,0.3701]
[1729450047142,0.37008,2702.5,2702.3,0.3701]
[1729450047342,0.3701,2702.4,2702.2,1.17091]
[1729450047949,1.1735,2702.8,2702.2,0.8008]
[1729450048246,0.37008,2702.5,2702.3,0.37011]
[1729450052951,0.37009,2702.5,2702.2,1.17091]
[1729450053151,0.37009,2702.5,2702.3,0.3701]
[1729450054457,1.1735,2702.8,2702.2,0.8008]
[1729450054458,0.4185,2702.8,2702.2,0.8008]
[1729450054649,0.37005,2702.7,2702.5,0.37007]
[1729450054848,0.37005,2702.7,2702.6,1.2078]
[1729450057952,0.4185,2702.8,2702.6,1.2078]
[1729450058151,0.37005,2702.7,2702.6,1.2078]
[1729450059453,0.4185,2702.8,2702.0,4.65956332]
[1729450059663,0.37012,2702.2,2702.1,0.4086]
[1729450060752,0.4192,2702.5,2702.0,0.3884]
[1729450060753,0.37013,2702.1,2702.0,0.3884]
[1729450061553,0.37013,2702.2,2702.0,0.75855]
[1729450061757,0.78363,2702.1,2702.0,0.3884]
[1729450062655,0.4135,2702.1,2702.0,0.3884]
[1729450062857,0.4135,2702.1,2702.0,0.75855]
[1729450063554,0.4135,2702.1,2702.0,0.3884]
[1729450063956,0.4135,2702.1,2702.0,0.75855]
[1729450065266,0.78363,2702.1,2702.0,0.5041498]
[1729450065762,0.78363,2702.1,2702.0,0.1157498]
[1729450066464,0.78363,2702.1,2701.9,0.4105]
[1729450066465,0.78363,2702.1,2701.9,0.78065]
[1729450066759,0.78363,2702.1,2702.0,0.11575067]
[1729450068567,0.4135,2702.1,2702.0,0.11575067]
[1729450068959,0.4135,2702.1,2702.0,0.48590067]
[1729450069261,0.78363,2702.1,2702.0,0.11575067]
[1729450069655,0.4135,2702.1,2702.0,0.11575067]
[1729450069857,0.78363,2702.1,2702.0,0.11575067]
[1729450070058,0.4135,2702.1,2702.0,0.115753]
[1729450070361,0.75551,2702.3,2702.0,1.24986351]
[1729450070573,0.75551,2702.3,2702.1,1.698383]
[1729450070765,0.7877,2702.4,2702.2,0.485873]
[1729450070968,0.7877,2702.4,2701.3,4.65956332]
[1729450070969,0.37023,2701.5,2701.3,4.65956332]
[1729450071160,0.37019,2701.7,2701.5,0.37021]
[1729450071469,0.37021,2701.6,2701.4,0.79013]
[1729450071658,0.37021,2701.6,2701.5,0.30100848]
[1729450072158,0.37021,2701.6,2701.4,0.79013]
[1729450073068,0.37017,2701.8,2701.4,0.79012]
[1729450073258,0.37021,2701.6,2701.4,0.79012]